bitfinex/quotes_BTCUSD_20241107
["timestamp","ask_amount","ask_price","bid_price","bid_amount"]
[1730971759831,1.86091089,75146.0,75145.0,0.002666]
[1730971761017,1.86491089,75146.0,75145.0,0.002666]
[1730971762581,1.86574389,75146.0,75145.0,0.002666]
[1730971773153,2.08294226,75146.0,75145.0,0.002666]
[1730971773358,0.58294226,75146.0,75145.0,0.002666]
[1730971773992,2.08294226,75146.0,75145.0,0.002666]
[1730971778063,2.13574238,75146.0,75145.0,0.002666]
[1730971779103,1.655907,75146.0,75145.0,0.002666]
[1730971784226,1.79016848,75146.0,75145.0,0.002666]
[1730971790320,2.08896266,75146.0,75145.0,0.002666]
[1730971790601,1.99520537,75146.0,75145.0,0.002666]
[1730971799394,2.10020537,75146.0,75145.0,0.002666]
[1730971799563,0.27625235,75134.0,75133.0,0.001666]
[1730971799962,0.35918924,75134.0,75133.0,0.001666]
[1730971800178,1.85918924,75134.0,75133.0,0.001666]
[1730971800586,1.95918924,75134.0,75133.0,0.001666]
[1730971801937,1.95918924,75134.0,75133.0,0.002666]
[1730971802146,1.95918924,75134.0,75133.0,0.001666]
[1730971802483,1.87825235,75134.0,75133.0,0.001666]
[1730971802687,1.87825235,75134.0,75133.0,0.002666]
[1730971803870,2.01049337,75134.0,75133.0,0.002666]
[1730971805421,1.92755648,75134.0,75133.0,0.002666]
[1730971805627,1.96229337,75134.0,75133.0,0.002666]
[1730971806868,1.83005235,75134.0,75133.0,0.002666]
[1730971807009,1.82803189,75134.0,75133.0,0.002666]
[1730971813032,1.92429539,75134.0,75133.0,0.002666]
[1730971813198,2.10575687,75134.0,75133.0,0.002666]
[1730971813611,2.18869376,75134.0,75133.0,0.002666]
[1730971813936,2.19369376,75134.0,75133.0,0.002666]
[1730971814357,0.13313,75114.0,75113.0,0.19985078]
[1730971814569,0.13813,75114.0,75113.0,0.19985078]
[1730971815098,0.133136,75111.0,75110.0,0.0814]
[1730971815305,0.21607289,75111.0,75110.0,0.0814]
[1730971815506,0.133136,75111.0,75110.0,0.0814]
[1730971817093,0.12379878,75113.0,75106.0,0.05447858]
[1730971817309,0.266269,75112.0,75110.0,0.001]
[1730971817658,0.133136,75111.0,75110.0,0.001]
[1730971817807,0.138136,75111.0,75110.0,0.001]
[1730971818234,0.138136,75111.0,75105.0,0.0769]
[1730971818235,0.133145,75106.0,75105.0,0.0769]
[1730971819707,0.133145,75106.0,75105.0,0.0779]
[1730971820887,1.633145,75106.0,75105.0,0.0779]
[1730971821948,1.633145,75106.0,75105.0,0.001]
[1730971822303,1.638145,75106.0,75105.0,0.001]
[1730971822729,1.643145,75106.0,75105.0,0.001]
[1730971823104,0.143146,75105.0,75104.0,0.001666]
[1730971825266,0.143146,75105.0,75104.0,0.078966]
[1730971825456,0.138146,75105.0,75104.0,0.078966]
[1730971826466,0.005,75105.0,75104.0,0.079966]
[1730971826694,1.638146,75105.0,75104.0,0.079966]
[1730971826898,1.638146,75105.0,75104.0,0.078966]
[1730971827097,1.638146,75105.0,75104.0,0.079966]
[1730971828497,1.638146,75105.0,75104.0,0.078966]
[1730971828879,1.638146,75105.0,75104.0,0.079966]
[1730971831180,1.638146,75105.0,75104.0,0.002666]
[1730971831635,1.505,75105.0,75104.0,0.002666]
[1730971832337,1.638146,75105.0,75104.0,0.002666]
[1730971834861,1.638146,75105.0,75104.0,0.003666]
[1730971835282,0.138146,75105.0,75104.0,0.003666]
[1730971835855,1.643146,75105.0,75104.0,0.003666]
[1730971836675,1.643146,75105.0,75104.0,0.002666]
[1730971837084,1.643146,75105.0,75104.0,0.003666]
[1730971837519,1.72602996,75105.0,75104.0,0.003666]
[1730971837924,1.72602996,75105.0,75104.0,0.002666]
[1730971838267,1.643146,75105.0,75104.0,0.003666]
[1730971851619,1.868046,75105.0,75104.0,0.003666]
[1730971853586,1.87006646,75105.0,75104.0,0.003666]
[1730971853963,1.92640748,75105.0,75104.0,0.003666]
[1730971855868,1.87740748,75105.0,75104.0,0.003666]
[1730971856118,1.87538702,75105.0,75104.0,0.003666]
[1730971856269,1.743146,75105.0,75104.0,0.003666]
[1730971856493,1.82602996,75105.0,75104.0,0.003666]
[1730971859175,1.82602996,75105.0,75094.0,0.11669474]
[1730971859176,0.133154,75101.0,75094.0,0.11669474]
[1730971859545,0.133154,75101.0,75094.0,0.17158844]
[1730971859546,0.08288396,75100.0,75094.0,0.17158844]
[1730971859977,0.08288396,75100.0,75094.0,0.0548937]
[1730971860177,0.08288396,75100.0,75093.0,0.0811]
[1730971860353,0.005,75095.0,75094.0,0.001]
[1730971860915,0.005,75095.0,75093.0,0.0811]
[1730971861341,0.005,75095.0,75094.0,0.002]
[1730971861718,0.005,75095.0,75094.0,0.001]
[1730971862149,0.005,75095.0,75094.0,0.002]
[1730971863055,0.005,75095.0,75094.0,0.001]
[1730971863273,0.138164,75095.0,75094.0,0.001]
[1730971866173,1.638164,75095.0,75094.0,0.001]
[1730971868168,1.638164,75095.0,75094.0,0.002666]
[1730971868614,1.77742548,75095.0,75094.0,0.002666]
[1730971868839,1.82602548,75095.0,75094.0,0.002666]
[1730971871919,1.82602548,75095.0,75094.0,0.001666]
[1730971872358,1.82602548,75095.0,75094.0,0.002666]
[1730971872534,1.82602548,75095.0,75094.0,0.001666]
[1730971872957,1.83002548,75095.0,75094.0,0.001666]
[1730971873164,1.82602548,75095.0,75094.0,0.001666]
[1730971873592,1.82602548,75095.0,75094.0,0.002666]
[1730971874187,1.82602548,75095.0,75094.0,0.001666]
[1730971874392,2.04115221,75095.0,75094.0,0.001666]
[1730971874600,2.15515221,75095.0,75094.0,0.002666]
[1730971874802,1.94002548,75095.0,75094.0,0.002666]
[1730971875413,1.93302548,75095.0,75094.0,0.002666]
[1730971875830,1.94202548,75095.0,75094.0,0.002666]
[1730971876024,1.89342548,75095.0,75094.0,0.002666]
[1730971876236,1.759164,75095.0,75094.0,0.002666]
[1730971876441,1.659164,75095.0,75094.0,0.002666]
[1730971876653,1.652164,75095.0,75094.0,0.001666]
[1730971876859,1.65418446,75095.0,75094.0,0.001666]
[1730971877076,1.66218446,75095.0,75094.0,0.002666]
[1730971877307,1.522,75095.0,75094.0,0.002666]
[1730971877524,1.522,75095.0,75094.0,0.052066]
[1730971878355,1.514,75095.0,75094.0,0.10624147]
[1730971878557,1.505,75095.0,75094.0,0.10624147]
[1730971878911,1.507,75095.0,75094.0,0.10624147]
[1730971879115,1.505,75095.0,75094.0,0.10624147]
[1730971879518,1.505,75095.0,75094.0,0.10724147]
[1730971879722,1.638164,75095.0,75094.0,0.002666]
[1730971880328,1.505,75095.0,75094.0,0.002666]
[1730971883149,1.5,75095.0,75094.0,0.002666]
[1730971883357,1.505,75095.0,75094.0,0.002666]
[1730971883773,1.5,75095.0,75094.0,0.002666]
[1730971883989,1.505,75095.0,75094.0,0.002666]
[1730971886720,1.455,75095.0,75094.0,0.002666]
[1730971887558,1.455,75095.0,75094.0,0.001666]
[1730971887967,1.455,75095.0,75094.0,0.002666]
[1730971890827,0.005,75095.0,75094.0,0.002666]
[1730971891273,1.5,75098.0,75096.0,0.00297954]
[1730971891514,0.000833,75100.0,75097.0,0.12737954]
[1730971891728,0.000833,75100.0,75099.0,0.00497954]
[1730971891951,0.000833,75100.0,75099.0,0.26162056]
[1730971892877,0.000833,75100.0,75099.0,0.26428337]
[1730971895377,0.000833,75100.0,75099.0,0.26528337]
[1730971896329,0.000833,75100.0,75099.0,0.26262056]
[1730971896777,4e-05,75106.0,75105.0,0.00297954]
[1730971897012,4e-05,75106.0,75105.0,0.08367954]
[1730971897246,4e-05,75106.0,75105.0,0.12917954]
[1730971897934,4e-05,75106.0,75105.0,0.34630452]
[1730971898610,4e-05,75106.0,75105.0,0.34730452]
[1730971898817,1.5,75121.0,75116.0,0.1236]
[1730971899243,0.20489078,75130.0,75117.0,0.00297954]
[1730971899669,1.5,75129.0,75117.0,0.00297954]
[1730971900731,1.505,75129.0,75118.0,0.19985078]
[1730971900986,1.505,75129.0,75117.0,0.00297954]
[1730971901165,0.005,75128.0,75117.0,0.00297954]
[1730971901803,0.005,75124.0,75117.0,0.00297954]
[1730971902018,0.005,75128.0,75117.0,0.00297954]
[1730971902019,0.005,75123.0,75117.0,0.00297954]
[1730971902244,0.005,75124.0,75117.0,0.00297954]
[1730971902453,0.005,75128.0,75117.0,0.00297954]
[1730971902658,1.5,75127.0,75117.0,0.00297954]
[1730971902910,0.005,75124.0,75117.0,0.00297954]
[1730971903109,0.005,75123.0,75117.0,0.00297954]
[1730971904213,0.000833,75123.0,75119.0,0.00297954]
[1730971904630,0.001833,75123.0,75119.0,0.00297954]
[1730971905210,0.006833,75123.0,75119.0,0.00297954]
[1730971905474,0.005833,75123.0,75119.0,0.00297954]
[1730971906623,0.007833,75123.0,75119.0,0.00297954]
[1730971906831,0.010833,75123.0,75119.0,0.00297954]
[1730971907456,1.5,75122.0,75119.0,0.00297954]
[1730971908318,1.5,75122.0,75116.0,0.17880734]
[1730971908319,1.58288396,75122.0,75116.0,0.05520734]
[1730971908536,1.58288396,75122.0,75112.0,0.00297954]
[1730971908537,0.21600796,75118.0,75112.0,0.00297954]
[1730971908732,1.503,75122.0,75112.0,0.00297954]
[1730971908733,0.08288396,75114.0,75112.0,0.00297954]
[1730971909177,1.5,75113.0,75112.0,0.00297954]
[1730971910235,1.5,75113.0,75112.0,0.00397954]
[1730971910494,1.5,75113.0,75112.0,0.00297954]
[1730971910904,1.5,75113.0,75112.0,0.00397954]
[1730971911585,1.5,75113.0,75112.0,0.001]
[1730971911991,1.5,75113.0,75112.0,0.00397954]
[1730971912238,1.5,75113.0,75112.0,0.001]
[1730971914812,1.5,75113.0,75109.0,0.00297954]
[1730971915005,1.5,75113.0,75112.0,0.001]
[1730971915626,1.643132,75113.0,75112.0,0.001]
[1730971915869,1.64515246,75113.0,75112.0,0.001]
[1730971916744,1.51202046,75113.0,75106.0,0.05645158]
[1730971916944,0.21602696,75107.0,75106.0,0.05645158]
[1730971917469,1.71602696,75107.0,75106.0,0.05645158]
[1730971918541,1.71602696,75107.0,75106.0,0.05745158]
[1730971919245,1.72602696,75107.0,75106.0,0.002666]
[1730971919455,1.85322696,75107.0,75106.0,0.002666]
[1730971920353,1.85522696,75107.0,75106.0,0.001666]
[1730971920581,1.77332696,75107.0,75106.0,0.001666]
[1730971920857,1.77632696,75107.0,75106.0,0.001666]
[1730971921052,1.77332696,75107.0,75106.0,0.001666]
[1730971921512,1.77732696,75107.0,75106.0,0.001666]
[1730971922142,1.77532696,75107.0,75106.0,0.001666]
[1730971922548,1.697443,75107.0,75106.0,0.001666]
[1730971922666,1.78032696,75107.0,75106.0,0.001666]
[1730971922880,1.77532696,75107.0,75106.0,0.001666]
[1730971923284,1.78032696,75107.0,75106.0,0.001666]
[1730971923960,1.9974724,75107.0,75106.0,0.001666]
[1730971924160,2.0741724,75107.0,75106.0,0.001666]
[1730971924374,2.1741724,75107.0,75106.0,0.001666]
[1730971924790,2.29505636,75107.0,75094.0,0.001666]
[1730971924957,0.43475238,75095.0,75094.0,0.001666]
[1730971925170,0.35186842,75095.0,75094.0,0.001666]
[1730971925408,1.89286142,75095.0,75094.0,0.001666]
[1730971926139,1.89986142,75095.0,75094.0,0.002666]
[1730971926687,2.02510244,75095.0,75094.0,0.001666]
[1730971927154,1.90286142,75095.0,75094.0,0.001666]
[1730971927362,1.65518446,75095.0,75094.0,0.001666]
[1730971928214,1.77906142,75095.0,75094.0,0.001666]
[1730971928614,1.78906142,75095.0,75094.0,0.001666]
[1730971931760,1.77906142,75095.0,75094.0,0.001666]
[1730971932172,1.78206142,75095.0,75094.0,0.001666]
[1730971932566,1.77906142,75095.0,75094.0,0.001666]
[1730971933269,1.76906142,75095.0,75094.0,0.001666]
[1730971933484,1.77406142,75095.0,75094.0,0.001666]
[1730971937646,1.515,75095.0,75094.0,0.001666]
[1730971938072,1.648164,75095.0,75094.0,0.001666]
[1730971938274,1.515,75095.0,75094.0,0.001666]
[1730971938913,1.507,75095.0,75094.0,0.001666]
[1730971939084,0.002,75095.0,75094.0,0.001666]
[1730971939454,0.005,75095.0,75094.0,0.001666]
[1730971939860,0.005,75095.0,75094.0,0.002666]
[1730971940031,0.005,75095.0,75094.0,0.001666]
[1730971940457,0.005,75095.0,75094.0,0.002666]
[1730971940973,1.505,75096.0,75094.0,0.001666]
[1730971941179,1.505,75096.0,75094.0,0.003666]
[1730971941403,1.505,75096.0,75094.0,0.002666]
[1730971941629,0.342476,75110.0,75094.0,0.002666]
[1730971941630,0.005,75104.0,75094.0,0.002666]
[1730971941854,0.005,75100.0,75095.0,0.1231]
[1730971942078,0.005,75098.0,75095.0,0.1231]
[1730971942307,0.005,75100.0,75095.0,0.1231]
[1730971942765,1.5,75099.0,75095.0,0.1231]
[1730971943611,1.5,75099.0,75095.0,0.1241]
[1730971943826,1.5,75099.0,75095.0,0.1231]
[1730971944297,1.5,75099.0,75095.0,0.1251]
[1730971944708,1.5,75099.0,75095.0,0.1241]
[1730971945133,1.5,75099.0,75095.0,0.1251]
[1730971949623,1.5,75099.0,75097.0,0.00297954]
[1730971949835,0.005833,75107.0,75097.0,0.00297954]
[1730971949836,0.000833,75107.0,75097.0,0.00297954]
[1730971950231,1.5,75106.0,75097.0,0.00297954]
[1730971950602,0.005,75105.0,75097.0,0.00297954]
[1730971950810,0.005,75105.0,75097.0,0.00397954]
[1730971951411,0.005,75105.0,75097.0,0.00297954]
[1730971952973,0.005,75105.0,75097.0,0.00397954]
[1730971953180,0.005,75105.0,75097.0,0.00297954]
[1730971953607,0.005,75105.0,75097.0,0.00397954]
[1730971954300,1.5,75104.0,75097.0,0.00397954]
[1730971956640,1.5,75104.0,75097.0,0.00297954]
[1730971956771,1.5,75104.0,75097.0,0.00397954]
[1730971957199,1.5,75104.0,75097.0,0.03057954]
[1730971957607,1.5,75104.0,75097.0,0.02957954]
[1730971958009,1.5,75104.0,75097.0,0.03157954]
[1730971958207,1.5,75104.0,75097.0,0.03057954]
[1730971958943,1.5,75104.0,75097.0,0.00397954]
[1730971959332,1.5,75104.0,75097.0,0.00297954]
[1730971959694,1.5,75104.0,75097.0,0.00397954]
[1730971959828,1.5,75104.0,75097.0,0.00297954]
[1730971960262,1.5,75104.0,75097.0,0.00397954]
[1730971960483,1.5,75104.0,75097.0,0.00297954]
[1730971960898,1.5,75104.0,75097.0,0.00497954]
[1730971961329,1.5,75104.0,75097.0,0.00297954]
[1730971961559,1.5,75104.0,75097.0,0.00397954]
[1730971961793,1.5,75104.0,75097.0,0.00497954]
[1730971962221,1.5,75104.0,75097.0,0.00397954]
[1730971962441,1.5,75104.0,75097.0,0.00497954]
[1730971962888,1.5,75104.0,75097.0,0.00397954]
[1730971963329,1.5,75104.0,75097.0,0.00564554]
[1730971963533,1.5,75104.0,75098.0,0.00297954]
[1730971963740,1.5,75104.0,75099.0,0.0266]
[1730971966206,1.5,75104.0,75100.0,0.0492]
[1730971967658,1.5,75104.0,75100.0,0.0502]
[1730971967866,1.5,75104.0,75100.0,0.0512]
[1730971970634,1.5,75104.0,75100.0,0.05417954]
[1730971972878,1.5,75104.0,75100.0,0.0512]
[1730971973727,1.5,75104.0,75101.0,0.0266]
[1730971973930,0.000833,75106.0,75102.0,0.07907954]
[1730971975006,0.000833,75106.0,75102.0,0.0761]
[1730971975211,0.000833,75106.0,75102.0,0.0771]
[1730971976038,0.000833,75106.0,75105.0,0.00297954]
[1730971977512,0.000833,75106.0,75105.0,0.00397954]
[1730971977721,0.000833,75106.0,75105.0,0.13622056]
[1730971977929,0.000833,75106.0,75105.0,0.18712056]
[1730971978136,0.000833,75106.0,75105.0,0.0529]
[1730971978427,0.000833,75106.0,75105.0,0.0509]
[1730971982214,0.000833,75106.0,75105.0,0.1264]
[1730971982900,0.000833,75106.0,75105.0,0.1284]
[1730971983121,0.000833,75106.0,75105.0,0.1264]
[1730971983346,0.000833,75106.0,75105.0,0.1284]
[1730971983789,0.000833,75106.0,75105.0,0.1264]
[1730971986163,0.000833,75106.0,75105.0,0.001]
[1730971987534,0.08369865,75106.0,75105.0,0.001]
[1730971987748,0.29624365,75106.0,75105.0,0.001]
[1730971987980,0.30124365,75106.0,75105.0,0.001]
[1730971988151,0.30124365,75106.0,75105.0,0.002666]
[1730971988975,0.30124365,75106.0,75105.0,0.001666]
[1730971989175,0.30124365,75106.0,75105.0,0.002666]
[1730971989996,0.218378,75106.0,75105.0,0.002666]
[1730971990702,0.218378,75106.0,75105.0,0.001666]
[1730971990922,0.085233,75106.0,75105.0,0.002666]
[1730971991142,1.718378,75106.0,75105.0,0.002666]
[1730971991363,1.505833,75106.0,75105.0,0.002666]
[1730971992383,1.638978,75106.0,75105.0,0.002666]
[1730971993009,1.72184365,75106.0,75105.0,0.002666]
[1730971993235,1.76714365,75106.0,75105.0,0.002666]
[1730971993638,1.87214365,75106.0,75105.0,0.002666]
[1730971994251,1.87714365,75106.0,75105.0,0.002666]
[1730971995066,1.87714365,75106.0,75105.0,0.001666]
[1730971995475,1.88014365,75106.0,75105.0,0.001666]
[1730971995642,1.88314365,75106.0,75105.0,0.001666]
[1730971996852,2.17075032,75106.0,75105.0,0.001666]
[1730971997127,2.17075032,75106.0,75105.0,0.002666]
[1730971997324,2.28575032,75106.0,75105.0,0.002666]
[1730971997488,2.28275032,75106.0,75105.0,0.002666]
[1730971997690,2.28275032,75106.0,75105.0,0.001666]
[1730971998049,2.46776763,75106.0,75105.0,0.001666]
[1730971998253,2.49076763,75106.0,75105.0,0.001666]
[1730971998472,2.50576763,75106.0,75105.0,0.001666]
[1730971998678,2.49676763,75106.0,75105.0,0.001666]
[1730971998889,2.50976763,75106.0,75105.0,0.001666]
[1730971999309,2.50776763,75106.0,75105.0,0.001666]
[1730971999510,2.46591116,75106.0,75105.0,0.001666]
[1730971999941,2.46191116,75106.0,75105.0,0.001666]
[1730972000300,2.47491116,75106.0,75105.0,0.001666]
[1730972001025,2.47691116,75106.0,75105.0,0.001666]
[1730972001227,2.47491116,75106.0,75105.0,0.001666]
[1730972007782,2.60078599,75106.0,75105.0,0.001666]
[1730972008620,2.60078599,75106.0,75094.0,0.001666]
[1730972008621,0.208559,75098.0,75094.0,0.001666]
[1730972008859,0.389864,75095.0,75094.0,0.001666]
[1730972009067,0.66897985,75095.0,75094.0,0.001666]
[1730972009298,2.16897985,75095.0,75094.0,0.001666]
[1730972010579,2.17197985,75095.0,75094.0,0.001666]
[1730972010692,2.30422262,75095.0,75094.0,0.001666]
[1730972011151,2.30722262,75095.0,75094.0,0.001666]
[1730972011383,2.30422262,75095.0,75094.0,0.001666]
[1730972011701,2.30122262,75095.0,75094.0,0.001666]
[1730972011850,2.31022262,75095.0,75094.0,0.001666]
[1730972012066,2.18297985,75095.0,75094.0,0.001666]
[1730972013082,2.23746903,75095.0,75094.0,0.001666]
[1730972013507,2.25146903,75095.0,75094.0,0.001666]
[1730972013672,2.23746903,75095.0,75094.0,0.001666]
[1730972014150,2.25146903,75095.0,75094.0,0.001666]
[1730972016248,2.28015014,75095.0,75094.0,0.001666]
[1730972021509,2.32215801,75095.0,75094.0,0.001666]
[1730972021850,0.253177,75088.0,75081.0,0.00141588]
[1730972022207,0.46835937,75088.0,75081.0,0.00141588]
[1730972023799,0.47935937,75088.0,75081.0,0.00141588]
[1730972024644,0.49035937,75088.0,75081.0,0.00141588]
[1730972025837,0.62260214,75088.0,75081.0,0.00141588]
[1730972027461,0.30241802,75088.0,75081.0,0.00141588]
[1730972027682,0.38535937,75088.0,75083.0,0.133]
[1730972028126,1.88535937,75088.0,75083.0,0.0831]
[1730972030893,1.88535937,75088.0,75081.0,0.00141588]
[1730972031111,1.88535937,75088.0,75081.0,0.08091588]
[1730972032683,1.80241802,75088.0,75081.0,0.08091588]
[1730972032918,1.88535937,75088.0,75081.0,0.08091588]
[1730972035825,1.88535937,75088.0,75087.0,0.001666]
[1730972039750,1.80241802,75088.0,75087.0,0.001666]
[1730972041318,1.66924102,75088.0,75087.0,0.123166]
[1730972041555,1.80241802,75088.0,75087.0,0.123166]
[1730972041757,1.79741802,75088.0,75087.0,0.123166]
[1730972042270,1.78641802,75088.0,75087.0,0.123166]
[1730972042471,1.77541802,75088.0,75087.0,0.123166]
[1730972042669,1.79341802,75088.0,75087.0,0.123166]
[1730972043234,1.78441802,75088.0,75087.0,0.123166]
[1730972043915,1.78041802,75088.0,75087.0,0.123166]
[1730972044305,1.78041802,75088.0,75087.0,0.124166]
[1730972045527,1.78041802,75088.0,75087.0,0.123166]
[1730972045950,1.78041802,75088.0,75087.0,0.124166]
[1730972046387,1.78141802,75088.0,75087.0,0.002666]
[1730972046788,1.78041802,75088.0,75087.0,0.002666]
[1730972046925,1.78041802,75088.0,75087.0,0.001666]
[1730972047126,1.78441802,75088.0,75087.0,0.001666]
[1730972047355,1.78841802,75088.0,75087.0,0.001666]
[1730972048889,1.87135937,75088.0,75087.0,0.001666]
[1730972049678,1.86635937,75088.0,75087.0,0.001666]
[1730972049878,1.87135937,75088.0,75087.0,0.001666]
[1730972050131,1.86635937,75088.0,75087.0,0.001666]
[1730972050331,1.87135937,75088.0,75087.0,0.001666]
[1730972050664,1.86335937,75088.0,75087.0,0.001666]
[1730972051000,1.86435937,75088.0,75087.0,0.001666]
[1730972051620,1.86635937,75088.0,75087.0,0.001666]
[1730972051817,1.86435937,75088.0,75087.0,0.001666]
[1730972052111,1.86735937,75088.0,75087.0,0.001666]
[1730972052405,1.86235937,75088.0,75087.0,0.001666]
[1730972052581,1.86735937,75088.0,75087.0,0.001666]
[1730972053027,1.86635937,75088.0,75087.0,0.001666]
[1730972054125,1.86735937,75088.0,75087.0,0.001666]
[1730972054322,1.87135937,75088.0,75087.0,0.001666]
[1730972059724,1.86735937,75088.0,75087.0,0.001666]
[1730972059930,1.86935937,75088.0,75087.0,0.001666]
[1730972060517,1.86735937,75088.0,75087.0,0.001666]
[1730972060966,1.86935937,75088.0,75087.0,0.001666]
[1730972061175,1.517,75088.0,75087.0,0.001666]
[1730972061379,1.502,75088.0,75087.0,0.123966]
[1730972061782,1.503,75088.0,75087.0,0.123966]
[1730972062964,1.5,75088.0,75087.0,0.123966]
[1730972063368,1.5,75088.0,75087.0,0.124966]
[1730972063572,0.005833,75091.0,75087.0,0.124966]
[1730972063774,0.000833,75091.0,75087.0,0.124966]
[1730972063974,0.005833,75091.0,75087.0,0.123966]
[1730972064195,0.000833,75091.0,75087.0,0.123966]
[1730972064538,0.000833,75091.0,75087.0,0.124966]
[1730972064907,0.005,75088.0,75087.0,0.124966]
[1730972066815,0.005,75088.0,75087.0,0.078666]
[1730972067034,0.005,75088.0,75087.0,0.079666]
[1730972067495,0.005,75088.0,75087.0,0.078666]
[1730972067714,0.01,75088.0,75087.0,0.078666]
[1730972067993,1.505,75088.0,75087.0,0.079666]
[1730972068209,1.51,75088.0,75087.0,0.079666]
[1730972068424,1.51,75088.0,75087.0,0.078666]
[1730972069803,1.643177,75088.0,75087.0,0.078666]
[1730972070037,1.643177,75088.0,75087.0,0.001666]
[1730972070286,1.78041802,75088.0,75087.0,0.001666]
[1730972071138,1.78141802,75088.0,75087.0,0.001666]
[1730972071444,1.78441802,75088.0,75087.0,0.001666]
[1730972071853,1.79041802,75088.0,75087.0,0.001666]
[1730972072803,1.78641802,75088.0,75087.0,0.001666]
[1730972073143,1.89241802,75088.0,75087.0,0.001666]
[1730972073665,1.88641802,75088.0,75087.0,0.001666]
[1730972074094,1.89341802,75088.0,75087.0,0.001666]
[1730972078142,1.76024102,75088.0,75087.0,0.001666]
[1730972078335,1.89341802,75088.0,75087.0,0.001666]
[1730972078534,1.623,75088.0,75087.0,0.001666]
[1730972078735,1.623,75088.0,75087.0,0.125866]
[1730972079108,1.618,75088.0,75087.0,0.125866]
[1730972081370,1.613,75088.0,75087.0,0.125866]
[1730972081968,0.113,75088.0,75087.0,0.125866]
[1730972083031,0.106,75088.0,75087.0,0.125866]
[1730972083265,0.106,75088.0,75087.0,0.126866]
[1730972083470,0.1,75088.0,75087.0,0.126866]
[1730972083969,0.1,75088.0,75087.0,0.153486]
[1730972084169,0.1,75088.0,75087.0,0.126866]
[1730972084522,0.1,75088.0,75087.0,0.127866]
[1730972086440,1.6,75088.0,75087.0,0.127866]
[1730972089553,0.1,75088.0,75087.0,0.127866]
[1730972090240,1.6,75088.0,75087.0,0.127866]
[1730972091092,0.1,75088.0,75087.0,0.127866]
[1730972092010,0.105,75088.0,75087.0,0.127866]
[1730972092673,0.1,75088.0,75087.0,0.127866]
[1730972092871,0.105,75088.0,75087.0,0.127866]
[1730972093561,0.105,75088.0,75087.0,0.082166]
[1730972095919,0.1,75088.0,75087.0,0.131466]
[1730972099078,0.1,75088.0,75087.0,0.133466]
[1730972099505,0.1,75088.0,75087.0,0.131466]
[1730972099904,0.05838559,75088.0,75087.0,0.131466]
[1730972104856,0.05838559,75088.0,75087.0,0.26370702]
[1730972105057,0.05838559,75088.0,75087.0,0.26570702]
[1730972106723,0.05838559,75088.0,75087.0,0.26370702]
[1730972107192,0.05838559,75088.0,75087.0,0.26570702]
[1730972107641,0.05838559,75088.0,75087.0,0.26370702]
[1730972108582,0.05838559,75088.0,75087.0,0.26570702]
[1730972110014,0.02842541,75088.0,75087.0,0.26570702]
[1730972110259,0.02842541,75088.0,75087.0,0.26370702]
[1730972110481,0.02842541,75088.0,75087.0,0.26470702]
[1730972110695,0.02842541,75088.0,75087.0,0.26570702]
[1730972110942,0.02842541,75088.0,75087.0,0.26470702]
[1730972111180,0.02842541,75088.0,75087.0,0.26570702]
[1730972112315,0.02842541,75088.0,75087.0,0.26470702]
[1730972112784,0.02842541,75088.0,75087.0,0.26570702]
[1730972113759,0.02842541,75088.0,75087.0,0.29232702]
[1730972115133,0.02842541,75088.0,75087.0,0.29032702]
[1730972115980,0.02842541,75088.0,75087.0,0.21440702]
[1730972116213,0.02925841,75088.0,75087.0,0.21440702]
[1730972116851,0.02925841,75088.0,75087.0,0.21340702]
[1730972117057,0.02925841,75088.0,75087.0,0.21240702]
[1730972117307,0.02925841,75088.0,75087.0,0.21440702]
[1730972117738,0.02925841,75088.0,75087.0,0.21340702]
[1730972117910,0.02925841,75088.0,75087.0,0.21440702]
[1730972118320,0.02925841,75088.0,75087.0,0.21540702]
[1730972118521,0.02925841,75088.0,75087.0,0.21340702]
[1730972118723,0.02925841,75088.0,75087.0,0.21440702]
[1730972120044,0.02925841,75088.0,75087.0,0.003666]
[1730972121361,0.02925841,75088.0,75087.0,0.002666]
[1730972121574,0.11219976,75088.0,75087.0,0.002666]
[1730972121784,0.37537676,75088.0,75087.0,0.003666]
[1730972121996,0.38537676,75088.0,75087.0,0.002666]
[1730972122209,0.38537676,75088.0,75087.0,0.003666]
[1730972122210,2.02261778,75088.0,75087.0,0.003666]
[1730972122419,2.02261778,75088.0,75087.0,0.002666]
[1730972122623,2.02261778,75088.0,75087.0,0.003666]
[1730972123051,2.02261778,75088.0,75087.0,0.002666]
[1730972123505,1.88944078,75088.0,75087.0,0.002666]
[1730972123764,2.02261778,75088.0,75087.0,0.002666]
[1730972123989,2.02261778,75088.0,75087.0,0.003666]
[1730972124203,2.02261778,75088.0,75087.0,0.002666]
[1730972124420,1.58185841,75088.0,75087.0,0.002666]
[1730972124627,1.53925841,75088.0,75087.0,0.003666]
[1730972125492,1.53425841,75088.0,75087.0,0.003666]
[1730972125922,1.53925841,75088.0,75087.0,0.003666]
[1730972129183,1.72543541,75088.0,75087.0,0.003666]
[1730972130377,1.72543541,75088.0,75087.0,0.002666]
[1730972130876,1.72543541,75088.0,75087.0,0.003666]
[1730972131154,1.72543541,75088.0,75087.0,0.001666]
[1730972131483,1.85767643,75088.0,75087.0,0.001666]
[1730972131707,1.94017643,75088.0,75087.0,0.001666]
[1730972132098,1.94117643,75088.0,75087.0,0.001666]
[1730972132717,1.94017643,75088.0,75087.0,0.001666]
[1730972133143,1.94417643,75088.0,75087.0,0.001666]
[1730972133762,1.94517643,75088.0,75087.0,0.001666]
[1730972134201,1.94417643,75088.0,75087.0,0.001666]
[1730972134417,1.94817643,75088.0,75087.0,0.001666]
[1730972137040,2.05317643,75088.0,75087.0,0.001666]
[1730972137277,2.06317643,75088.0,75087.0,0.001666]
[1730972137940,2.05317643,75088.0,75087.0,0.001666]